[Event "Titled Tuesday Blitz February 22 Early 2022"]
[White "Shahaliyev, Ismayil"]
[Black "Demchenko, Anton"]
[WhiteFideId "13406388"]
[BlackFideId "4160258"]
[WhiteElo "2105"]
[BlackElo "2539"]
[Result "1-0"]
[Round "06"]
[TimeControl "180+1"]
[Date "2022.02.22"]
[WhiteClock "0:00:06"]
[BlackClock "0:00:01"]

1. d4 {[%clk 0:02:57]}  Nf6 {[%clk 0:02:59]} 2. Nf3 {[%clk 0:02:57]}  d6 {[%clk 0:03:00]} 3. g3 {[%clk 0:02:56]}  g6 {[%clk 0:02:59]} 4. Bg2 {[%clk 0:02:55]}  Bg7 {[%clk 0:02:59]} 5. O-O {[%clk 0:02:55]}  O-O {[%clk 0:03:00]} 6. a4 {[%clk 0:02:56]}  a5 {[%clk 0:02:58]} 7. Re1 {[%clk 0:02:55]}  Nc6 {[%clk 0:02:56]} 8. c3 {[%clk 0:02:55]}  e5 {[%clk 0:02:54]} 9. Na3 {[%clk 0:02:51]}  e4 {[%clk 0:02:51]} 10. Nd2 {[%clk 0:02:50]}  d5 {[%clk 0:02:51]} 11. Nf1 {[%clk 0:02:50]}  Ne7 {[%clk 0:02:45]} 12. Bf4 {[%clk 0:02:41]}  c6 {[%clk 0:02:44]} 13. Be5 {[%clk 0:02:22]}  Nh5 {[%clk 0:02:28]} 14. Bxg7 {[%clk 0:02:22]}  Kxg7 {[%clk 0:02:29]} 15. f4 {[%clk 0:02:16]}  Nf6 {[%clk 0:02:23]} 16. Ne3 {[%clk 0:02:14]}  h5 {[%clk 0:02:21]} 17. h3 {[%clk 0:02:10]}  Nf5 {[%clk 0:02:17]} 18. Nxf5+ {[%clk 0:02:05]}  gxf5 {[%clk 0:02:18]} 19. Nc2 {[%clk 0:02:06]}  h4 {[%clk 0:02:02]} 20. gxh4 {[%clk 0:01:58]}  Nh5 {[%clk 0:02:02]} 21. Rf1 {[%clk 0:01:32]}  Qxh4 {[%clk 0:02:02]} 22. Qe1 {[%clk 0:01:32]}  Qf6 {[%clk 0:01:40]} 23. Kh2 {[%clk 0:01:09]}  Rg8 {[%clk 0:01:31]} 24. Rg1 {[%clk 0:00:59]}  Kh6 {[%clk 0:01:31]} 25. Bh1 {[%clk 0:00:52]}  Be6 {[%clk 0:01:24]} 26. Ne3 {[%clk 0:00:43]}  Kh7 {[%clk 0:01:08]} 27. Qf2 {[%clk 0:00:42]}  Qh6 {[%clk 0:01:07]} 28. Ng2 {[%clk 0:00:28]}  Rg3 {[%clk 0:00:55]} 29. Nh4 {[%clk 0:00:27]}  Rxg1 {[%clk 0:00:46]} 30. Rxg1 {[%clk 0:00:28]}  Qxf4+ {[%clk 0:00:47]} 31. Qxf4 {[%clk 0:00:26]}  Nxf4 {[%clk 0:00:47]} 32. e3 {[%clk 0:00:21]}  Ng6 {[%clk 0:00:42]} 33. Ng2 {[%clk 0:00:07]}  b5 {[%clk 0:00:42]} 34. Ra1 {[%clk 0:00:04]}  Kh6 {[%clk 0:00:29]} 35. axb5 {[%clk 0:00:04]}  cxb5 {[%clk 0:00:29]} 36. Kg3 {[%clk 0:00:04]}  a4 {[%clk 0:00:22]} 37. Nf4 {[%clk 0:00:05]}  Rg8 {[%clk 0:00:23]} 38. Nxg6 {[%clk 0:00:04]}  fxg6 {[%clk 0:00:21]} 39. Kf4 {[%clk 0:00:04]}  Bf7 {[%clk 0:00:18]} 40. h4 {[%clk 0:00:04]}  Re8 {[%clk 0:00:17]} 41. Bg2 {[%clk 0:00:04]}  Kg7 {[%clk 0:00:18]} 42. Rh1 {[%clk 0:00:04]}  Kf6 {[%clk 0:00:18]} 43. Bf1 {[%clk 0:00:04]}  Rh8 {[%clk 0:00:18]} 44. Bxb5 {[%clk 0:00:05]}  Rb8 {[%clk 0:00:16]} 45. Bxa4 {[%clk 0:00:04]}  Rxb2 {[%clk 0:00:17]} 46. Kg3 {[%clk 0:00:05]}  Ra2 {[%clk 0:00:15]} 47. Bb5 {[%clk 0:00:05]}  Rc2 {[%clk 0:00:14]} 48. Ra1 {[%clk 0:00:05]}  Rxc3 {[%clk 0:00:14]} 49. Ra6+ {[%clk 0:00:05]}  Kg7 {[%clk 0:00:15]} 50. Kf4 {[%clk 0:00:06]}  Rc1 {[%clk 0:00:12]} 51. Ra7 {[%clk 0:00:06]}  Kf6 {[%clk 0:00:05]} 52. Ra6+ {[%clk 0:00:04]}  Be6 {[%clk 0:00:05]} 53. Bd7 {[%clk 0:00:02]}  Rf1+ {[%clk 0:00:03]} 54. Kg3 {[%clk 0:00:02]}  Rf3+ {[%clk 0:00:03]} 55. Kg2 {[%clk 0:00:03]}  Rxe3 {[%clk 0:00:04]} 56. Bxe6 {[%clk 0:00:04]}  Kg7 {[%clk 0:00:04]} 57. Bxd5 {[%clk 0:00:04]}  Rd3 {[%clk 0:00:05]} 58. Ra7+ {[%clk 0:00:05]}  Kh6 {[%clk 0:00:02]} 59. Ra4 {[%clk 0:00:05]}  Kh5 {[%clk 0:00:01]} 60. Bf7 {[%clk 0:00:06]} 1-0


[Site "https://www.chess.com"]

[Event "Titled Tuesday Blitz February 22 Early 2022"]
[White "Shtyka, Sergey"]
[Black "Singh, Ojasva"]
[WhiteFideId "4138465"]
[BlackFideId "25681958"]
[WhiteElo "2014"]
[BlackElo "1741"]
[Result "1-0"]
[Round "06"]
[TimeControl "180+1"]
[Date "2022.02.22"]
[WhiteClock "0:00:43"]
[BlackClock "0:00:03"]

1. e4 {[%clk 0:03:00]}  e5 {[%clk 0:02:59]} 2. Nf3 {[%clk 0:03:00]}  d6 {[%clk 0:02:59]} 3. d4 {[%clk 0:03:00]}  exd4 {[%clk 0:03:00]} 4. Nxd4 {[%clk 0:03:01]}  Nf6 {[%clk 0:03:01]} 5. Nc3 {[%clk 0:03:01]}  Be7 {[%clk 0:03:00]} 6. Be2 {[%clk 0:03:00]}  O-O {[%clk 0:02:59]} 7. O-O {[%clk 0:03:00]}  Nc6 {[%clk 0:02:59]} 8. Be3 {[%clk 0:03:00]}  Re8 {[%clk 0:02:58]} 9. Nxc6 {[%clk 0:02:58]}  bxc6 {[%clk 0:02:59]} 10. Bf3 {[%clk 0:02:55]}  Bf8 {[%clk 0:02:58]} 11. Qd3 {[%clk 0:02:52]}  Nd7 {[%clk 0:02:56]} 12. Qd2 {[%clk 0:02:41]}  Ne5 {[%clk 0:02:53]} 13. Be2 {[%clk 0:02:41]}  Be6 {[%clk 0:02:49]} 14. b3 {[%clk 0:02:40]}  Qh4 {[%clk 0:02:21]} 15. Bg5 {[%clk 0:02:21]}  Qxg5 {[%clk 0:01:55]} 16. Qxg5 {[%clk 0:02:19]}  h6 {[%clk 0:01:54]} 17. Qd2 {[%clk 0:02:18]}  g5 {[%clk 0:01:54]} 18. f4 {[%clk 0:02:17]}  gxf4 {[%clk 0:01:54]} 19. Qxf4 {[%clk 0:02:16]}  Bg7 {[%clk 0:01:54]} 20. Rad1 {[%clk 0:02:12]}  a5 {[%clk 0:01:42]} 21. Bh5 {[%clk 0:02:10]}  Re7 {[%clk 0:01:35]} 22. Ne2 {[%clk 0:02:10]}  a4 {[%clk 0:01:32]} 23. Nd4 {[%clk 0:02:09]}  axb3 {[%clk 0:01:32]} 24. axb3 {[%clk 0:02:08]}  c5 {[%clk 0:01:28]} 25. Nxe6 {[%clk 0:02:07]}  fxe6 {[%clk 0:01:29]} 26. h3 {[%clk 0:02:00]}  Ra2 {[%clk 0:01:14]} 27. Rf2 {[%clk 0:01:44]}  Nc6 {[%clk 0:00:59]} 28. Bf7+ {[%clk 0:01:40]}  Kh8 {[%clk 0:00:55]} 29. Kh1 {[%clk 0:01:36]}  Ra8 {[%clk 0:00:45]} 30. Bh5 {[%clk 0:01:29]}  Kg8 {[%clk 0:00:36]} 31. Rdf1 {[%clk 0:01:28]}  Ne5 {[%clk 0:00:35]} 32. Qe3 {[%clk 0:01:26]}  c4 {[%clk 0:00:31]} 33. bxc4 {[%clk 0:01:25]}  Nxc4 {[%clk 0:00:31]} 34. Qg3 {[%clk 0:01:24]}  Ne5 {[%clk 0:00:30]} 35. c4 {[%clk 0:01:20]}  Kh8 {[%clk 0:00:18]} 36. Qb3 {[%clk 0:01:12]}  Kg8 {[%clk 0:00:12]} 37. Ra2 {[%clk 0:01:11]}  Rd8 {[%clk 0:00:11]} 38. Ra7 {[%clk 0:01:10]}  Nc6 {[%clk 0:00:10]} 39. Ra6 {[%clk 0:01:09]}  Nd4 {[%clk 0:00:10]} 40. Qd1 {[%clk 0:01:08]}  Be5 {[%clk 0:00:09]} 41. Ra5 {[%clk 0:01:04]}  c5 {[%clk 0:00:09]} 42. Ra2 {[%clk 0:01:01]}  Rg7 {[%clk 0:00:09]} 43. Raf2 {[%clk 0:01:00]}  Rdd7 {[%clk 0:00:08]} 44. Bg4 {[%clk 0:00:58]}  Rde7 {[%clk 0:00:07]} 45. Qd3 {[%clk 0:00:57]}  Kh7 {[%clk 0:00:07]} 46. Rf8 {[%clk 0:00:54]}  Nc6 {[%clk 0:00:04]} 47. R1f2 {[%clk 0:00:53]}  Bd4 {[%clk 0:00:04]} 48. Rf1 {[%clk 0:00:52]}  Ne5 {[%clk 0:00:04]} 49. Qd1 {[%clk 0:00:51]}  Ng6 {[%clk 0:00:04]} 50. Ra8 {[%clk 0:00:48]}  Ne5 {[%clk 0:00:03]} 51. Bh5 {[%clk 0:00:46]}  Nxc4 {[%clk 0:00:04]} 52. Rff8 {[%clk 0:00:44]}  Ne3 {[%clk 0:00:03]} 53. Rh8# {[%clk 0:00:43]} 1-0


[Site "https://www.chess.com"]

[Event "Titled Tuesday Blitz February 22 Early 2022"]
[White "Suarez Uriel, Adrian"]
[Black "Hakemi, Arman"]
[WhiteFideId "22230874"]
[BlackFideId "22520805"]
[WhiteElo "2316"]
[BlackElo "2208"]
[Result "0-1"]
[Round "06"]
[TimeControl "180+1"]
[Date "2022.02.22"]
[WhiteClock "0:01:08"]
[BlackClock "0:00:16"]

1. e4 {[%clk 0:03:00]}  c5 {[%clk 0:02:55]} 2. Ne2 {[%clk 0:03:00]}  e6 {[%clk 0:02:55]} 3. d4 {[%clk 0:02:59]}  cxd4 {[%clk 0:02:56]} 4. Nxd4 {[%clk 0:03:00]}  Nc6 {[%clk 0:02:57]} 5. Nc3 {[%clk 0:03:00]}  Qc7 {[%clk 0:02:57]} 6. Qd3 {[%clk 0:03:00]}  Nf6 {[%clk 0:02:16]} 7. Ndb5 {[%clk 0:02:59]}  Qb8 {[%clk 0:02:14]} 8. Qg3 {[%clk 0:02:59]}  d6 {[%clk 0:02:15]} 9. Bf4 {[%clk 0:02:55]}  e5 {[%clk 0:02:04]} 10. Bg5 {[%clk 0:02:55]}  a6 {[%clk 0:02:01]} 11. Bxf6 {[%clk 0:02:47]}  gxf6 {[%clk 0:01:57]} 12. Na3 {[%clk 0:02:40]}  b5 {[%clk 0:01:37]} 13. Nd5 {[%clk 0:02:38]}  Be6 {[%clk 0:01:10]} 14. Nxf6+ {[%clk 0:02:37]}  Kd8 {[%clk 0:01:09]} 15. Nd5 {[%clk 0:02:35]}  Bxd5 {[%clk 0:01:08]} 16. exd5 {[%clk 0:02:35]}  Ne7 {[%clk 0:01:07]} 17. c4 {[%clk 0:02:34]}  bxc4 {[%clk 0:01:05]} 18. Bxc4 {[%clk 0:02:27]}  Qb4+ {[%clk 0:00:59]} 19. Qc3 {[%clk 0:02:27]}  Qxc3+ {[%clk 0:00:58]} 20. bxc3 {[%clk 0:02:28]}  Ng6 {[%clk 0:00:51]} 21. Rb1 {[%clk 0:02:25]}  Kc7 {[%clk 0:00:48]} 22. g3 {[%clk 0:02:20]}  f5 {[%clk 0:00:44]} 23. Ke2 {[%clk 0:02:19]}  Bg7 {[%clk 0:00:42]} 24. h4 {[%clk 0:02:04]}  e4 {[%clk 0:00:35]} 25. Bb3 {[%clk 0:01:58]}  Rhe8 {[%clk 0:00:31]} 26. Nc4 {[%clk 0:01:57]}  f4 {[%clk 0:00:30]} 27. h5 {[%clk 0:01:54]}  f3+ {[%clk 0:00:28]} 28. Kd1 {[%clk 0:01:53]}  Ne5 {[%clk 0:00:27]} 29. Nxe5 {[%clk 0:01:51]}  Rxe5 {[%clk 0:00:24]} 30. Rh4 {[%clk 0:01:45]}  e3 {[%clk 0:00:21]} 31. fxe3 {[%clk 0:01:34]}  Rxe3 {[%clk 0:00:22]} 32. Kd2 {[%clk 0:01:31]}  Rae8 {[%clk 0:00:20]} 33. Rf1 {[%clk 0:01:30]}  Bxc3+ {[%clk 0:00:19]} 34. Kc2 {[%clk 0:01:30]}  Be1 {[%clk 0:00:18]} 35. Rf4 {[%clk 0:01:28]}  f2 {[%clk 0:00:18]} 36. Rf7+ {[%clk 0:01:28]}  Kb6 {[%clk 0:00:18]} 37. Rxh7 {[%clk 0:01:28]}  Rc3+ {[%clk 0:00:17]} 38. Kb2 {[%clk 0:01:27]}  Re2+ {[%clk 0:00:17]} 39. Ka3 {[%clk 0:01:27]}  a5 {[%clk 0:00:16]} 40. Rh8 {[%clk 0:01:22]}  Rxg3 {[%clk 0:00:15]} 41. h6 {[%clk 0:01:12]}  Bb4+ {[%clk 0:00:14]} 42. Ka4 {[%clk 0:01:09]}  Rxa2+ {[%clk 0:00:15]} 43. Bxa2 {[%clk 0:01:08]}  Ra3# {[%clk 0:00:16]} 0-1


[Site "https://www.chess.com"]

[Event "Titled Tuesday Blitz February 22 Early 2022"]
[White "Tari, Aryan"]
[Black "Vokhidov, Shamsiddin"]
[WhiteFideId "1510045"]
[BlackFideId "14204223"]
[WhiteElo "2567"]
[BlackElo "2611"]
[Result "0-1"]
[Round "06"]
[TimeControl "180+1"]
[Date "2022.02.22"]
[WhiteClock "0:00:18"]
[BlackClock "0:01:06"]

1. e4 {[%clk 0:03:00]}  c5 {[%clk 0:03:00]} 2. Nc3 {[%clk 0:03:00]}  Nc6 {[%clk 0:03:00]} 3. f4 {[%clk 0:03:01]}  e6 {[%clk 0:03:00]} 4. Nf3 {[%clk 0:03:00]}  d5 {[%clk 0:03:00]} 5. Bb5 {[%clk 0:02:52]}  Ne7 {[%clk 0:03:00]} 6. exd5 {[%clk 0:02:48]}  Nxd5 {[%clk 0:03:01]} 7. O-O {[%clk 0:02:34]}  Be7 {[%clk 0:03:00]} 8. Ne5 {[%clk 0:02:31]}  Bd7 {[%clk 0:03:00]} 9. Bxc6 {[%clk 0:02:19]}  Bxc6 {[%clk 0:03:01]} 10. Nxc6 {[%clk 0:02:16]}  bxc6 {[%clk 0:03:01]} 11. Ne4 {[%clk 0:02:15]}  f5 {[%clk 0:02:51]} 12. Ng5 {[%clk 0:01:55]}  Bxg5 {[%clk 0:02:41]} 13. Qh5+ {[%clk 0:01:51]}  g6 {[%clk 0:02:40]} 14. Qxg5 {[%clk 0:01:51]}  Qxg5 {[%clk 0:02:35]} 15. fxg5 {[%clk 0:01:52]}  Nb4 {[%clk 0:02:30]} 16. c3 {[%clk 0:01:52]}  Nd3 {[%clk 0:02:29]} 17. b3 {[%clk 0:01:52]}  e5 {[%clk 0:02:28]} 18. Ba3 {[%clk 0:01:44]}  a5 {[%clk 0:02:21]} 19. Rae1 {[%clk 0:01:36]}  Nxe1 {[%clk 0:02:08]} 20. Rxe1 {[%clk 0:01:37]}  O-O-O {[%clk 0:02:06]} 21. Bxc5 {[%clk 0:01:31]}  Rxd2 {[%clk 0:02:04]} 22. Rxe5 {[%clk 0:01:31]}  Rd5 {[%clk 0:01:54]} 23. Rxd5 {[%clk 0:01:28]}  cxd5 {[%clk 0:01:55]} 24. Kf2 {[%clk 0:01:25]}  Kd7 {[%clk 0:01:52]} 25. Bb6 {[%clk 0:01:13]}  Ra8 {[%clk 0:01:51]} 26. Kf3 {[%clk 0:01:00]}  a4 {[%clk 0:01:41]} 27. Bd4 {[%clk 0:00:58]}  Rb8 {[%clk 0:01:21]} 28. b4 {[%clk 0:00:30]}  Kc6 {[%clk 0:01:21]} 29. g4 {[%clk 0:00:25]}  fxg4+ {[%clk 0:01:17]} 30. Kxg4 {[%clk 0:00:26]}  Re8 {[%clk 0:01:17]} 31. a3 {[%clk 0:00:21]}  Kb5 {[%clk 0:01:15]} 32. h4 {[%clk 0:00:21]}  Kc4 {[%clk 0:01:15]} 33. Kf3 {[%clk 0:00:20]}  Kb3 {[%clk 0:01:07]} 34. b5 {[%clk 0:00:20]}  Kxa3 {[%clk 0:01:07]} 35. b6 {[%clk 0:00:20]}  Kb3 {[%clk 0:01:07]} 36. b7 {[%clk 0:00:18]}  Rb8 {[%clk 0:01:06]} 0-1


[Site "https://www.chess.com"]

[Event "Titled Tuesday Blitz February 22 Early 2022"]
[White "Timofeev, Artyom"]
[Black "Deac, Bogdan-Daniel"]
[WhiteFideId "4140419"]
[BlackFideId "1226380"]
[WhiteElo "2583"]
[BlackElo "2646"]
[Result "1/2-1/2"]
[Round "06"]
[TimeControl "180+1"]
[Date "2022.02.22"]
[WhiteClock "0:00:08"]
[BlackClock "0:00:10"]

1. d4 {[%clk 0:03:00]}  Nf6 {[%clk 0:02:59]} 2. c4 {[%clk 0:03:00]}  g6 {[%clk 0:02:59]} 3. Nc3 {[%clk 0:03:00]}  d5 {[%clk 0:02:59]} 4. Bf4 {[%clk 0:03:00]}  Bg7 {[%clk 0:02:59]} 5. e3 {[%clk 0:03:00]}  c5 {[%clk 0:03:00]} 6. dxc5 {[%clk 0:02:59]}  Qa5 {[%clk 0:03:00]} 7. Rc1 {[%clk 0:02:51]}  Nbd7 {[%clk 0:02:56]} 8. cxd5 {[%clk 0:02:43]}  O-O {[%clk 0:02:56]} 9. Bc4 {[%clk 0:02:37]}  Nxc5 {[%clk 0:02:52]} 10. Ne2 {[%clk 0:02:37]}  Bd7 {[%clk 0:02:52]} 11. a3 {[%clk 0:02:32]}  Ba4 {[%clk 0:02:38]} 12. b4 {[%clk 0:02:24]}  Bxd1 {[%clk 0:02:38]} 13. bxa5 {[%clk 0:02:24]}  Bb3 {[%clk 0:02:39]} 14. Bxb3 {[%clk 0:02:08]}  Nxb3 {[%clk 0:02:38]} 15. Rb1 {[%clk 0:02:04]}  Nxa5 {[%clk 0:02:36]} 16. O-O {[%clk 0:02:04]}  b6 {[%clk 0:02:25]} 17. Rfd1 {[%clk 0:02:04]}  Rfd8 {[%clk 0:02:18]} 18. e4 {[%clk 0:02:00]}  Rac8 {[%clk 0:02:17]} 19. f3 {[%clk 0:01:42]}  Nh5 {[%clk 0:02:07]} 20. Bd2 {[%clk 0:01:39]}  Nc4 {[%clk 0:02:07]} 21. Bc1 {[%clk 0:01:32]}  Nd6 {[%clk 0:01:55]} 22. Nb5 {[%clk 0:01:20]}  Nxb5 {[%clk 0:01:55]} 23. Rxb5 {[%clk 0:01:20]}  f5 {[%clk 0:01:26]} 24. exf5 {[%clk 0:01:16]}  gxf5 {[%clk 0:01:25]} 25. d6 {[%clk 0:01:11]}  e6 {[%clk 0:01:19]} 26. g4 {[%clk 0:01:10]}  Nf6 {[%clk 0:01:11]} 27. gxf5 {[%clk 0:01:10]}  exf5 {[%clk 0:01:11]} 28. Rxf5 {[%clk 0:01:09]}  Kf7 {[%clk 0:00:38]} 29. Nf4 {[%clk 0:01:00]}  Rc6 {[%clk 0:00:34]} 30. d7 {[%clk 0:00:43]}  Rc7 {[%clk 0:00:32]} 31. Bb2 {[%clk 0:00:40]}  Rcxd7 {[%clk 0:00:30]} 32. Rxd7+ {[%clk 0:00:39]}  Rxd7 {[%clk 0:00:30]} 33. Bxf6 {[%clk 0:00:29]}  Bxf6 {[%clk 0:00:30]} 34. Nd5 {[%clk 0:00:30]}  Rd6 {[%clk 0:00:26]} 35. Nxf6 {[%clk 0:00:14]}  Rxf6 {[%clk 0:00:26]} 36. Rh5 {[%clk 0:00:15]}  Kg6 {[%clk 0:00:26]} 37. Rh3 {[%clk 0:00:13]}  Rf5 {[%clk 0:00:26]} 38. Kg2 {[%clk 0:00:13]}  h5 {[%clk 0:00:23]} 39. Rh4 {[%clk 0:00:13]}  b5 {[%clk 0:00:17]} 40. a4 {[%clk 0:00:12]}  a6 {[%clk 0:00:14]} 41. axb5 {[%clk 0:00:12]}  Rxb5 {[%clk 0:00:14]} 42. Rc4 {[%clk 0:00:11]}  a5 {[%clk 0:00:14]} 43. Kg3 {[%clk 0:00:10]}  Kf5 {[%clk 0:00:12]} 44. Rf4+ {[%clk 0:00:09]}  Kg5 {[%clk 0:00:11]} 45. h4+ {[%clk 0:00:09]}  Kg6 {[%clk 0:00:11]} 46. Ra4 {[%clk 0:00:09]}  Kf6 {[%clk 0:00:10]} 47. Rc4 {[%clk 0:00:08]}  Kg6 {[%clk 0:00:09]} 48. Ra4 {[%clk 0:00:08]}  Kf6 {[%clk 0:00:09]} 49. Rc4 {[%clk 0:00:08]}  Kg6 {[%clk 0:00:10]} 50. Ra4 {[%clk 0:00:08]} 1/2-1/2


[Site "https://www.chess.com"]

[Event "Titled Tuesday Blitz February 22 Early 2022"]
[White "Todorovic, Bojan"]
[Black "Przybylski, Wojciech"]
[WhiteFideId "917087"]
[BlackFideId "1117599"]
[WhiteElo "2266"]
[BlackElo "2133"]
[Result "1-0"]
[Round "06"]
[TimeControl "180+1"]
[Date "2022.02.22"]
[WhiteClock "0:00:09"]
[BlackClock "0:00:09"]

1. Nf3 {[%clk 0:02:59]}  Nf6 {[%clk 0:02:54]} 2. c4 {[%clk 0:02:58]}  c5 {[%clk 0:02:52]} 3. Nc3 {[%clk 0:02:57]}  Nc6 {[%clk 0:02:52]} 4. g3 {[%clk 0:02:57]}  e6 {[%clk 0:02:50]} 5. Bg2 {[%clk 0:02:57]}  Be7 {[%clk 0:02:51]} 6. O-O {[%clk 0:02:57]}  O-O {[%clk 0:02:51]} 7. d4 {[%clk 0:02:49]}  cxd4 {[%clk 0:02:50]} 8. Nxd4 {[%clk 0:02:49]}  a6 {[%clk 0:02:44]} 9. e4 {[%clk 0:02:44]}  Qc7 {[%clk 0:02:44]} 10. Nc2 {[%clk 0:02:33]}  b6 {[%clk 0:02:39]} 11. Be3 {[%clk 0:02:29]}  Bb7 {[%clk 0:02:37]} 12. Rc1 {[%clk 0:02:29]}  d6 {[%clk 0:02:31]} 13. Qe2 {[%clk 0:02:27]}  Rac8 {[%clk 0:02:30]} 14. b3 {[%clk 0:02:24]}  Nd7 {[%clk 0:02:29]} 15. f4 {[%clk 0:02:16]}  Bf6 {[%clk 0:02:28]} 16. Na4 {[%clk 0:01:56]}  Rfd8 {[%clk 0:02:22]} 17. Rfd1 {[%clk 0:01:51]}  Nc5 {[%clk 0:02:20]} 18. Nxc5 {[%clk 0:01:51]}  bxc5 {[%clk 0:02:20]} 19. e5 {[%clk 0:01:30]}  dxe5 {[%clk 0:02:14]} 20. Bxc5 {[%clk 0:01:28]}  exf4 {[%clk 0:02:12]} 21. gxf4 {[%clk 0:01:09]}  Qxf4 {[%clk 0:02:08]} 22. Bb6 {[%clk 0:01:07]}  Rxd1+ {[%clk 0:00:53]} 23. Rxd1 {[%clk 0:01:07]}  Be5 {[%clk 0:00:53]} 24. Bf3 {[%clk 0:01:01]}  Nd4 {[%clk 0:00:37]} 25. Nxd4 {[%clk 0:00:50]}  Bxd4+ {[%clk 0:00:35]} 26. Rxd4 {[%clk 0:00:50]}  Bxf3 {[%clk 0:00:20]} 27. Rxf4 {[%clk 0:00:37]}  Bxe2 {[%clk 0:00:20]} 28. Kf2 {[%clk 0:00:37]}  Bh5 {[%clk 0:00:18]} 29. c5 {[%clk 0:00:34]}  f6 {[%clk 0:00:17]} 30. Ra4 {[%clk 0:00:34]}  Be8 {[%clk 0:00:14]} 31. Rxa6 {[%clk 0:00:33]}  e5 {[%clk 0:00:14]} 32. a4 {[%clk 0:00:30]}  f5 {[%clk 0:00:14]} 33. b4 {[%clk 0:00:30]}  f4 {[%clk 0:00:13]} 34. b5 {[%clk 0:00:30]}  e4 {[%clk 0:00:13]} 35. Ra7 {[%clk 0:00:23]}  Bh5 {[%clk 0:00:11]} 36. c6 {[%clk 0:00:20]}  e3+ {[%clk 0:00:11]} 37. Bxe3 {[%clk 0:00:20]}  fxe3+ {[%clk 0:00:11]} 38. Kxe3 {[%clk 0:00:21]}  Bg4 {[%clk 0:00:10]} 39. Kd4 {[%clk 0:00:18]}  g5 {[%clk 0:00:10]} 40. Kc5 {[%clk 0:00:17]}  h5 {[%clk 0:00:10]} 41. b6 {[%clk 0:00:17]}  Bf3 {[%clk 0:00:09]} 42. c7 {[%clk 0:00:17]}  g4 {[%clk 0:00:09]} 43. Kd6 {[%clk 0:00:13]}  h4 {[%clk 0:00:09]} 44. b7 {[%clk 0:00:12]}  Bxb7 {[%clk 0:00:09]} 45. Rxb7 {[%clk 0:00:12]}  g3 {[%clk 0:00:08]} 46. Rb8 {[%clk 0:00:13]}  gxh2 {[%clk 0:00:07]} 47. Rxc8+ {[%clk 0:00:12]}  Kg7 {[%clk 0:00:07]} 48. Re8 {[%clk 0:00:11]}  h1=Q {[%clk 0:00:07]} 49. c8=Q {[%clk 0:00:11]}  Qd1+ {[%clk 0:00:06]} 50. Ke7 {[%clk 0:00:10]}  Qe2+ {[%clk 0:00:05]} 51. Kd8 {[%clk 0:00:10]}  Qd2+ {[%clk 0:00:04]} 52. Qd7+ {[%clk 0:00:10]}  Qxd7+ {[%clk 0:00:04]} 53. Kxd7 {[%clk 0:00:11]}  h3 {[%clk 0:00:04]} 54. Re1 {[%clk 0:00:11]}  Kg6 {[%clk 0:00:05]} 55. a5 {[%clk 0:00:11]}  Kg5 {[%clk 0:00:06]} 56. a6 {[%clk 0:00:11]}  h2 {[%clk 0:00:07]} 57. a7 {[%clk 0:00:12]}  h1=Q {[%clk 0:00:08]} 58. Rxh1 {[%clk 0:00:11]}  Kg4 {[%clk 0:00:09]} 59. a8=Q {[%clk 0:00:11]}  Kg3 {[%clk 0:00:09]} 60. Qe4 {[%clk 0:00:10]}  Kf2 {[%clk 0:00:09]} 61. Rh2+ {[%clk 0:00:10]}  Kg1 {[%clk 0:00:09]} 62. Qg2# {[%clk 0:00:09]} 1-0


[Site "https://www.chess.com"]

[Event "Titled Tuesday Blitz February 22 Early 2022"]
[White "Tsvetkov, Andrey"]
[Black "Pajeken, Jakob Leon"]
[WhiteFideId "34139360"]
[BlackFideId "12942839"]
[WhiteElo "2280"]
[BlackElo "2351"]
[Result "0-1"]
[Round "06"]
[TimeControl "180+1"]
[Date "2022.02.22"]
[WhiteClock "0:00:22"]
[BlackClock "0:01:47"]

1. d4 {[%clk 0:03:00]}  d5 {[%clk 0:02:59]} 2. c4 {[%clk 0:03:01]}  dxc4 {[%clk 0:03:00]} 3. Nf3 {[%clk 0:03:00]}  Nf6 {[%clk 0:03:00]} 4. e3 {[%clk 0:03:01]}  e6 {[%clk 0:03:00]} 5. Bxc4 {[%clk 0:03:01]}  c5 {[%clk 0:03:00]} 6. O-O {[%clk 0:03:01]}  Nc6 {[%clk 0:02:59]} 7. Nc3 {[%clk 0:02:57]}  a6 {[%clk 0:02:58]} 8. dxc5 {[%clk 0:02:53]}  Qxd1 {[%clk 0:02:55]} 9. Rxd1 {[%clk 0:02:54]}  Bxc5 {[%clk 0:02:56]} 10. a3 {[%clk 0:02:54]}  b5 {[%clk 0:02:55]} 11. Bd3 {[%clk 0:02:54]}  Bb7 {[%clk 0:02:55]} 12. Ne4 {[%clk 0:02:53]}  Be7 {[%clk 0:02:54]} 13. Nxf6+ {[%clk 0:02:40]}  Bxf6 {[%clk 0:02:54]} 14. Be4 {[%clk 0:02:41]}  Na5 {[%clk 0:02:44]} 15. Bxb7 {[%clk 0:02:36]}  Nxb7 {[%clk 0:02:44]} 16. e4 {[%clk 0:02:37]}  Rd8 {[%clk 0:02:43]} 17. Rxd8+ {[%clk 0:02:29]}  Bxd8 {[%clk 0:02:41]} 18. Be3 {[%clk 0:02:28]}  Ke7 {[%clk 0:02:37]} 19. Rd1 {[%clk 0:02:19]}  Bc7 {[%clk 0:02:29]} 20. Nd4 {[%clk 0:02:19]}  Na5 {[%clk 0:02:20]} 21. Bg5+ {[%clk 0:01:24]}  f6 {[%clk 0:02:16]} 22. Bd2 {[%clk 0:01:24]}  Nc4 {[%clk 0:02:14]} 23. Bb4+ {[%clk 0:01:24]}  Bd6 {[%clk 0:02:11]} 24. Nc6+ {[%clk 0:00:52]}  Kd7 {[%clk 0:02:07]} 25. Na5 {[%clk 0:00:51]}  Kc7 {[%clk 0:02:01]} 26. Bc3 {[%clk 0:00:26]}  Be5 {[%clk 0:01:55]} 27. Nxc4 {[%clk 0:00:22]}  Bxc3 {[%clk 0:01:55]} 28. bxc3 {[%clk 0:00:22]}  bxc4 {[%clk 0:01:55]} 29. Rd4 {[%clk 0:00:23]}  Rd8 {[%clk 0:01:52]} 30. Rxc4+ {[%clk 0:00:20]}  Kb6 {[%clk 0:01:49]} 31. Rd4 {[%clk 0:00:17]}  Rxd4 {[%clk 0:01:49]} 32. cxd4 {[%clk 0:00:18]}  Kb5 {[%clk 0:01:49]} 33. f4 {[%clk 0:00:02]}  Kc4 {[%clk 0:01:47]} 34. f5 {[%clk 0:00:02]}  exf5 {[%clk 0:01:44]} 35. d5 {[%clk 0:00:02]}  Kc5 {[%clk 0:01:44]} 36. exf5 {[%clk 0:00:01]}  Kxd5 {[%clk 0:01:45]} 37. Kf2 {[%clk 0:00:01]}  Ke4 {[%clk 0:01:41]} 38. g4 {[%clk 0:00:01]}  Kf4 {[%clk 0:01:42]} 39. h3 {[%clk 0:00:02]}  h5 {[%clk 0:01:42]} 40. gxh5 {[%clk 0:00:03]}  Kxf5 {[%clk 0:01:42]} 41. Ke3 {[%clk 0:00:03]}  Kg5 {[%clk 0:01:42]} 42. Kd4 {[%clk 0:00:04]}  Kxh5 {[%clk 0:01:43]} 43. Kc5 {[%clk 0:00:04]}  f5 {[%clk 0:01:43]} 44. Kb6 {[%clk 0:00:05]}  f4 {[%clk 0:01:44]} 45. Kxa6 {[%clk 0:00:06]}  f3 {[%clk 0:01:44]} 46. Kb6 {[%clk 0:00:07]}  f2 {[%clk 0:01:45]} 47. a4 {[%clk 0:00:08]}  f1=Q {[%clk 0:01:45]} 48. a5 {[%clk 0:00:09]}  Qf8 {[%clk 0:01:46]} 49. a6 {[%clk 0:00:09]}  Qa8 {[%clk 0:01:46]} 50. a7 {[%clk 0:00:10]}  Kh4 {[%clk 0:01:46]} 51. Ka6 {[%clk 0:00:11]}  Kxh3 {[%clk 0:01:47]} 52. Kb6 {[%clk 0:00:12]}  g5 {[%clk 0:01:47]} 53. Ka6 {[%clk 0:00:13]}  g4 {[%clk 0:01:48]} 54. Kb6 {[%clk 0:00:14]}  g3 {[%clk 0:01:49]} 55. Ka6 {[%clk 0:00:15]}  g2 {[%clk 0:01:50]} 56. Ka5 {[%clk 0:00:16]}  g1=Q {[%clk 0:01:50]} 57. Ka6 {[%clk 0:00:16]}  Qgxa7+ {[%clk 0:01:50]} 58. Kb5 {[%clk 0:00:17]}  Q8b7+ {[%clk 0:01:50]} 59. Kc4 {[%clk 0:00:18]}  Qab8 {[%clk 0:01:50]} 60. Kd3 {[%clk 0:00:19]}  Qe7 {[%clk 0:01:49]} 61. Kc2 {[%clk 0:00:19]}  Qec7+ {[%clk 0:01:46]} 62. Kd2 {[%clk 0:00:19]}  Qbd8+ {[%clk 0:01:47]} 63. Ke2 {[%clk 0:00:20]}  Qce7+ {[%clk 0:01:48]} 64. Kf1 {[%clk 0:00:21]}  Qdf8+ {[%clk 0:01:47]} 65. Kg1 {[%clk 0:00:21]}  Qeg7+ {[%clk 0:01:47]} 66. Kh1 {[%clk 0:00:22]}  Qf1# {[%clk 0:01:47]} 0-1


[Site "https://www.chess.com"]